bitfinex-derivatives/quotes_BNBF0:USTF0_20250425
["timestamp","ask_amount","ask_price","bid_price","bid_amount"]
[1745562849092,1.10256277,608.46,607.54,0.30195959]
[1745562849793,1.10256277,608.45,607.54,1.44095959]
[1745562849988,1.10256277,608.45,607.55,0.30195959]
[1745562850487,1.10256277,608.45,607.54,1.139]
[1745562850692,1.10256277,608.44,607.55,0.30185409]
[1745562851086,1.09987048,608.43,607.55,0.30185409]
[1745562851993,2.14006587,610.98,607.55,0.30185409]
[1745562852797,2.14518745,612.11,607.55,0.30185409]
[1745562852798,0.2857835,610.97,607.55,0.30185409]
[1745562852989,1.3842856,610.97,607.55,0.30185409]
[1745562853399,1.0985021,610.96,607.55,0.30185409]
[1745562853989,1.0985021,610.95,607.55,0.30185409]
[1745562854496,1.0985021,610.94,607.55,0.30185409]
[1745562855090,1.0985021,610.93,607.55,0.30185409]
[1745562855295,1.0985021,610.93,607.56,0.30185409]
[1745562855494,1.0985021,610.93,607.57,0.30185409]
[1745562855694,1.0985021,610.92,607.55,0.30185409]
[1745562855995,1.0985021,610.91,607.56,0.30185409]
[1745562856195,1.0985021,610.91,607.55,0.30185409]
[1745562856394,1.0985021,610.9,607.56,0.30185409]
[1745562856598,1.3842375,610.9,607.57,0.30185409]
[1745562856789,1.3842375,610.9,607.55,0.30185409]
[1745562856992,1.3842375,610.9,607.56,0.30168217]
[1745562857195,1.0985021,610.89,607.55,0.30168217]
[1745562857696,1.0985021,610.88,607.55,1.70168217]
[1745562857897,1.0985021,610.88,607.56,0.30168217]
[1745562858094,1.0985021,610.87,607.56,0.30168217]
[1745562858696,1.0985021,610.86,607.56,0.30168217]
[1745562858893,1.0985021,610.86,607.55,1.4]
[1745562859095,1.0985021,610.86,607.56,0.30168639]
[1745562859289,1.0985021,610.85,607.57,0.30168639]
[1745562859489,1.0985021,610.85,607.58,0.30168639]
[1745562859694,1.0985021,610.85,607.55,1.4]
[1745562859695,1.0985021,610.85,607.59,0.30168639]
[1745562859898,1.0985021,610.84,607.6,0.30168639]
[1745562860090,1.0985021,610.84,607.61,0.30168639]
[1745562860296,1.0985021,610.84,607.62,0.30163233]
[1745562860598,1.38422577,610.83,607.63,0.30163233]
[1745562860801,1.38422577,610.83,607.57,0.30163233]
[1745562860993,1.38422577,610.83,607.58,0.30163233]
[1745562861195,1.0985021,610.82,607.57,0.30163233]
[1745562861692,1.0985021,610.82,607.56,0.28572367]
[1745562861693,1.0985021,610.81,607.66,1.03729696]
[1745562861893,1.0985021,610.8,607.67,0.30161148]
[1745562862399,1.0985021,610.79,607.68,0.30161148]
[1745562862596,1.0985021,610.79,607.69,0.30161148]
[1745562862796,1.0985021,610.78,607.7,0.30161148]
[1745562862996,1.0985021,610.78,607.71,0.30161148]
[1745562863196,1.0985021,610.78,607.72,0.30161148]
[1745562863397,1.0985021,610.78,607.73,0.30161148]
[1745562863599,1.38420818,610.77,607.74,0.30161148]
[1745562863894,1.0985021,610.76,607.75,0.30161148]
[1745562864098,1.0985021,610.76,607.76,0.30161148]
[1745562864291,1.0985021,610.75,607.77,0.30161148]
[1745562864497,1.0985021,610.75,607.78,0.30161148]
[1745562864696,1.0985021,610.74,607.79,0.30161148]
[1745562864893,1.0985021,610.73,607.6,0.28570373]
[1745562865095,1.0985021,610.73,607.61,0.30161068]
[1745562865303,1.0985021,610.73,607.62,0.30161068]
[1745562865495,1.0985021,610.72,607.63,0.30161068]
[1745562865698,1.0985021,610.72,607.64,0.30161068]
[1745562865898,1.0985021,610.72,607.55,1.4]
[1745562865899,1.0985021,610.72,607.7,1.03729696]
[1745562866098,1.0985021,610.71,607.71,0.30161068]
[1745562866298,1.0985021,610.71,607.72,0.30161068]
[1745562866499,1.0985021,610.7,607.7,1.03729696]
[1745562866699,1.0985021,610.7,607.71,0.30161139]
[1745562866898,1.0985021,610.69,607.72,0.30161139]
[1745562867102,1.0985021,610.69,607.73,0.30161139]
[1745562867298,1.0985021,610.69,607.74,0.30161139]
[1745562867498,1.0985021,610.68,607.75,0.30161139]
[1745562867701,1.0985021,610.68,607.76,0.30161139]
[1745562867999,1.0985021,610.67,607.77,0.30161139]
[1745562868212,1.0985021,610.67,607.78,0.30161139]
[1745562868396,1.0985021,610.66,607.71,0.30161139]
[1745562868601,1.38423281,610.66,607.72,0.30161139]
[1745562868900,1.0985021,610.65,607.73,0.30161139]
[1745562869100,1.0985021,610.64,607.74,0.30161139]
[1745562869300,1.0985021,610.64,607.69,1.32302767]
[1745562869301,1.0985021,610.63,607.75,0.30161139]
[1745562869600,1.0985021,610.63,607.76,0.30161139]
[1745562869806,1.0985021,610.62,607.77,0.30161139]
[1745562869994,1.0985021,610.62,607.78,0.30161139]
[1745562870199,1.0985021,610.62,607.76,0.30161139]
[1745562870399,1.0985021,610.61,607.76,0.30161139]
[1745562870802,1.0985021,610.61,607.77,0.30161139]
[1745562871002,1.0985021,610.6,607.78,0.30161139]
[1745562871201,1.0985021,610.6,607.76,0.30161139]
[1745562871802,1.0985021,610.59,607.76,0.30161139]
[1745562872006,1.0985021,610.59,607.77,1.621]
[1745562872206,1.0985021,610.58,607.78,0.30161139]
[1745562872610,1.0985021,610.57,607.78,0.30161139]
[1745562873104,1.0985021,610.56,607.78,0.30161139]
[1745562873909,1.0985021,610.55,607.78,0.30161139]
[1745562874513,1.0985021,610.54,607.78,0.30161139]
[1745562874804,1.38427387,610.54,607.79,0.30172196]
[1745562875104,1.38427387,610.54,607.8,0.30172196]
[1745562875410,1.0985021,610.53,607.81,0.30172196]
[1745562875609,1.0985021,610.53,607.8,0.30172196]
[1745562876110,1.0985021,610.52,607.8,0.30172196]
[1745562876711,1.0985021,610.51,607.8,0.30172196]
[1745562877110,1.0985021,610.5,607.8,0.30172196]
[1745562877705,0.28577177,610.54,607.8,0.30172196]
[1745562877706,1.0985021,610.49,607.8,0.30172196]
[1745562878410,1.0985021,610.48,607.8,0.30172196]
[1745562879005,1.0985021,610.47,607.8,0.30172196]
[1745562879808,1.0985021,610.46,607.8,0.30172196]
[1745562880008,1.0985021,610.45,607.8,0.30172196]
[1745562880510,0.28578585,610.44,607.8,0.30172196]
[1745562880711,1.38428795,610.44,607.8,0.30172196]
[1745562881006,1.0985021,610.43,607.8,0.30172196]
[1745562881411,1.0985021,610.42,607.81,0.30172196]
[1745562881610,1.0985021,610.42,607.82,0.30172196]
[1745562881808,1.0985021,610.41,607.8,0.30172196]
[1745562882009,1.0985021,610.4,607.81,0.30172196]
[1745562882209,1.0985021,610.4,607.8,0.30172196]
[1745562882407,1.0985021,610.39,607.81,0.30172196]
[1745562882609,1.0985021,610.39,607.8,0.30172196]
[1745562882809,1.0985021,610.39,607.79,1.7947882]
[1745562883114,1.0985021,610.38,607.8,0.30172364]
[1745562883512,1.38429499,610.38,607.81,1.03729696]
[1745562883715,1.0985021,610.37,607.82,0.30172364]
[1745562884515,1.0985021,610.36,607.82,0.30172364]
[1745562885008,1.0985021,610.35,607.82,0.30172364]
[1745562885918,1.0985021,610.34,607.83,1.03729696]
[1745562886118,1.0985021,610.33,607.84,0.30172364]
[1745562886512,1.0985021,610.33,607.85,1.095]
[1745562886714,1.38429734,610.32,607.86,0.30172364]
[1745562887113,1.0985021,610.31,607.86,0.30172364]
[1745562887817,1.0985021,610.3,607.86,0.30172364]
[1745562888616,1.0985021,610.29,607.86,0.30172364]
[1745562888809,1.0985021,610.28,607.86,0.30172364]
[1745562889427,1.0985021,610.28,607.85,2.748]
[1745562889610,1.38430086,610.27,607.87,0.30172707]
[1745562889912,1.38430086,610.27,607.88,0.30172707]
[1745562890110,1.38430086,610.27,607.86,0.30172707]
[1745562890312,1.0985021,610.26,607.87,0.30172707]
[1745562890511,1.0985021,610.26,607.88,0.30172707]
[1745562890713,1.0985021,610.25,607.86,0.30172707]
[1745562890911,1.0985021,610.25,607.87,0.30172707]
[1745562891113,1.0985021,610.25,607.86,0.30172707]
[1745562891313,1.0985021,610.24,607.86,0.30172707]
[1745562891512,1.0985021,610.23,607.86,0.30172707]
[1745562892721,1.38431377,610.22,607.86,0.30172707]
[1745562892919,1.0985021,610.21,607.86,0.30172707]
[1745562893727,1.0985021,610.2,607.86,0.30172707]
[1745562894022,1.0985021,610.19,607.86,0.30172707]
[1745562894622,1.0985021,610.18,607.86,0.30172707]
[1745562895524,1.38435485,610.17,607.86,0.30172707]
[1745562896320,1.0985021,610.16,607.86,0.30172707]
[1745562896923,1.0985021,610.16,607.87,1.406]
[1745562897123,1.0985021,610.16,607.88,0.30172707]
[1745562897323,1.0985021,610.15,607.88,0.30172707]
[1745562897624,1.0985021,610.14,607.88,0.30172707]
[1745562898424,1.3843572,610.13,607.88,0.30172707]
[1745562898630,1.0985021,610.12,607.88,0.30172707]
[1745562899125,1.0985021,610.12,607.87,1.406]
[1745562899329,1.0985021,610.11,607.88,0.30180551]
[1745562899922,1.0985021,610.1,607.88,0.30180551]
[1745562900122,1.0985021,610.1,607.89,0.3018051]
[1745562900329,1.0985021,610.1,607.88,0.3018051]
[1745562900528,1.0985021,610.09,607.89,0.3018051]
[1745562900823,1.0985021,610.09,607.9,0.3018051]
[1745562901028,1.0985021,610.09,607.91,0.30177668]
[1745562901222,1.0985021,610.09,607.87,1.406]
[1745562901223,1.0985021,610.08,607.92,0.30177668]
[1745562901436,1.0985021,610.08,607.88,0.30177668]
[1745562901631,1.38434664,610.08,607.88,0.58762122]
[1745562901826,1.0985021,610.07,607.89,0.30177668]
[1745562902135,1.0985021,610.06,607.89,0.30177668]
[1745562902632,1.0985021,610.05,607.89,0.30177668]
[1745562903228,1.0985021,610.04,607.89,0.30177668]
[1745562903436,1.0985021,610.03,607.88,0.28584454]
[1745562903633,1.0985021,610.03,607.9,0.30177127]
[1745562903832,1.0985021,610.03,607.91,0.30177127]
[1745562904032,1.0985021,610.02,607.92,0.30177127]
[1745562904235,1.0985021,610.01,607.89,0.30177127]
[1745562904531,1.0985021,610.01,607.9,0.30177127]
[1745562904836,1.0985021,610.0,607.9,0.30177127]
[1745562905034,1.0985021,610.0,607.89,0.28584336]
[1745562905235,1.0985021,610.0,607.9,0.3017598]
[1745562905434,1.0985021,609.99,607.9,0.3017598]
[1745562906035,1.0985021,609.98,607.9,0.3017598]
[1745562906231,1.0985021,609.98,607.9,1.8447598]
[1745562906432,1.0985021,609.97,607.91,0.3017598]
[1745562906631,1.0985021,609.97,607.92,0.30177452]
[1745562906831,1.0985021,609.97,607.91,0.30177452]
[1745562907033,1.0985021,609.97,607.92,0.30177452]
[1745562907239,1.0985021,609.96,607.91,0.30177452]
[1745562907534,1.38435485,609.96,607.91,0.30177452]
[1745562907841,1.0985021,609.95,607.91,0.30177452]
[1745562908437,1.0985021,609.94,607.91,0.30177452]
[1745562909037,1.0985021,609.93,607.91,0.30177452]
[1745562909338,1.0985021,609.92,607.91,0.30177452]
[1745562909833,1.0985021,609.91,607.91,0.30177452]
[1745562910238,1.0985021,609.9,607.91,0.30177452]
[1745562910439,1.0985021,609.89,607.91,0.30177452]
[1745562910631,1.38436307,609.89,607.91,0.30177452]
[1745562910838,1.38436307,609.89,607.91,1.70677452]
[1745562911038,1.0985021,609.88,607.92,0.30177452]
[1745562911645,1.0985021,609.87,607.92,0.30177452]
[1745562912540,1.0985021,609.86,607.92,0.30177452]
[1745562912845,1.0985021,609.85,607.91,1.405]
[1745562913140,1.0985021,609.85,607.92,0.3018666]
[1745562913541,1.0985021,609.84,607.92,0.3018666]
[1745562914744,1.0985021,609.83,607.92,0.3018666]
[1745562915442,1.0985021,609.82,607.92,0.3018666]
[1745562915636,1.0985021,609.81,607.92,0.3018666]
[1745562915949,1.0985021,609.81,607.91,1.405]
[1745562916146,1.0985021,609.81,607.92,0.30187946]
[1745562916444,1.38441709,609.8,607.92,0.30187946]
[1745562917039,1.0985021,609.79,607.92,0.30187946]
[1745562917239,1.0985021,609.79,607.91,1.405]
[1745562917645,1.0985021,609.78,607.91,1.405]
[1745562917941,1.0985021,609.77,607.91,1.405]
[1745562918745,1.0985021,609.76,607.91,1.405]
[1745562919749,1.0985021,609.75,607.91,1.405]
[1745562920171,1.0985021,609.74,607.91,1.405]
[1745562920446,1.38440534,609.74,607.91,1.405]
[1745562920749,1.0985021,609.73,607.91,1.405]
[1745562921343,1.0985021,609.72,607.91,1.405]
[1745562922150,1.0985021,609.71,607.91,1.405]
[1745562922746,1.0985021,609.7,607.91,1.405]
[1745562922950,1.0985021,609.69,607.91,1.405]
[1745562923653,1.0985021,609.68,607.92,0.3018555]
[1745562923952,1.0985021,609.68,607.91,1.405]
[1745562924157,1.0985021,609.67,607.92,0.3018575]
[1745562924655,1.0985021,609.67,607.92,1.4278575]
[1745562924953,1.0985021,609.67,607.93,0.3018575]
[1745562925154,1.0985021,609.66,607.93,0.3018575]
[1745562925753,1.0985021,609.65,607.93,0.3018575]
[1745562926154,1.0985021,609.64,607.93,0.3018575]
[1745562926357,1.0985021,609.64,607.94,0.30185912]
[1745562926566,1.0985021,609.63,607.93,0.30185912]
[1745562926855,1.0985021,609.63,607.94,0.30185912]
[1745562927057,1.0985021,609.63,607.93,0.30185912]
[1745562927253,1.0985021,609.63,607.94,0.30185912]
[1745562927457,1.0985021,609.62,607.93,0.30185912]
[1745562927658,1.0985021,609.62,607.94,0.30185912]
[1745562927859,1.0985021,609.62,607.93,0.30185912]
[1745562928062,1.0985021,609.62,607.94,0.30185912]
[1745562928255,1.0985021,609.61,607.93,0.30185912]
[1745562928465,1.0985021,609.61,607.94,0.30185912]
[1745562928660,1.0985021,609.61,607.92,1.126]
[1745562928661,1.0985021,609.6,607.93,0.30185912]
[1745562929261,1.0985021,609.59,607.93,0.30185912]
[1745562929476,1.0985021,609.59,607.94,0.30185861]
[1745562929766,1.0985021,609.58,607.95,0.30185861]
[1745562929964,1.0985021,609.58,607.92,1.41194083]
[1745562930259,1.0985021,609.57,607.93,0.3018593]
[1745562930659,1.0985021,609.57,607.92,1.41194083]
[1745562930968,1.0985021,609.57,607.92,3.00594083]
[1745562931469,1.0985021,609.56,607.92,2.72]
[1745562932263,1.0985021,609.55,607.92,2.72]
[1745562932759,1.0985021,609.54,607.92,3.00594671]
[1745562933159,1.0985021,609.53,607.92,3.00594671]
[1745562933463,1.0985021,609.52,607.92,3.00594671]
[1745562933764,1.0985021,609.52,607.93,0.30184317]
[1745562933968,1.0985021,609.52,607.92,3.00594671]
[1745562934165,1.0985021,609.51,607.93,0.30182302]
[1745562934962,1.0985021,609.5,607.93,0.30182302]
[1745562935467,1.0985021,609.49,607.93,0.30182302]
[1745562935969,1.0985021,609.48,607.93,0.30182302]
[1745562936964,1.0985021,609.47,607.93,0.30182302]
[1745562937277,1.0985021,609.46,607.93,0.30182302]
[1745562937775,1.0985021,609.45,607.93,0.30182302]
[1745562938470,1.0985021,609.44,607.93,0.30182302]
[1745562938868,1.0985021,609.43,607.93,0.30182302]
[1745562939768,1.0985021,609.42,607.93,0.30182302]
[1745562940276,1.0985021,609.41,607.92,2.72]
[1745562940573,1.0985021,609.41,607.93,0.30186083]
[1745562941371,1.0985021,609.4,607.93,0.30186083]
[1745562941666,1.0985021,609.4,607.93,1.49286083]
[1745562941875,1.0985021,609.4,607.94,0.30186029]
[1745562942071,1.0985021,609.39,607.94,0.30186029]
[1745562942775,1.0985021,609.38,607.94,0.30186029]
[1745562943275,1.0985021,609.38,607.95,1.246]
[1745562943477,1.0985021,609.37,607.96,0.30186083]
[1745562943870,1.0985021,609.36,607.96,0.30186083]
[1745562944275,2.14006587,610.12,607.96,0.30186083]
[1745562944276,1.0985021,609.35,607.96,0.30186083]
[1745562944479,1.0985021,609.34,607.96,0.30186083]
[1745562945276,1.0985021,609.33,607.96,0.30186083]
[1745562945778,1.0985021,609.33,607.95,1.246]
[1745562945779,1.0985021,609.32,607.95,1.246]
[1745562946278,1.0985021,609.31,607.95,1.246]
[1745562946976,1.0985021,609.3,607.95,1.246]
[1745562947373,1.0985021,609.29,607.95,1.246]
[1745562948081,1.0985021,609.28,607.95,1.246]
[1745562948584,1.0985021,609.27,607.95,1.246]
[1745562949281,1.0985021,609.26,607.95,1.246]
[1745562949481,1.0985021,609.26,607.96,0.30185403]
[1745562949683,1.0985021,609.26,607.95,1.246]
[1745562950080,1.0985021,609.25,607.95,1.246]
[1745562950581,1.0985021,609.24,607.95,1.246]
[1745562950883,1.0985021,609.23,607.95,1.246]
[1745562951177,1.0985021,609.23,607.96,0.30184662]
[1745562951881,1.0985021,609.22,607.96,0.30184662]
[1745562952479,1.0985021,609.21,607.96,0.30184662]
[1745562953083,1.0985021,609.2,607.96,0.30184662]
[1745562953377,1.0985021,609.19,607.96,0.30184662]
[1745562953976,1.0985021,609.18,607.96,0.30184662]
[1745562954477,1.0985021,609.17,607.96,0.30184662]
[1745562955285,1.0985021,609.16,607.96,0.30184662]
[1745562955476,1.0985021,609.16,607.97,1.132]
[1745562955677,1.0985021,609.16,607.98,0.30184662]
[1745562955881,1.0985021,609.15,607.99,0.30182919]
[1745562956183,1.0985021,609.14,608.0,0.30182919]
[1745562956383,1.0985021,609.14,608.01,0.30182919]
[1745562956582,1.0985021,609.14,608.01,1.615]
[1745562956780,1.0985021,609.13,608.02,0.30182919]
[1745562956980,1.0985021,609.12,608.02,0.30182919]
[1745562957489,1.0985021,609.12,608.03,0.30182956]
[1745562957692,1.0985021,609.11,608.01,1.615]
[1745562958191,1.0985021,609.1,608.01,1.615]
[1745562958685,1.0985021,609.09,608.01,1.615]
[1745562958987,1.0985021,609.08,608.01,1.615]
[1745562959285,1.0985021,609.08,608.02,1.78579999]
[1745562959489,1.0985021,609.07,608.03,0.30179999]
[1745562959885,1.0985021,609.06,608.03,0.30179999]
[1745562960490,1.0985021,609.06,608.02,1.484]
[1745562960693,1.0985021,609.06,608.03,0.30176141]
[1745562960986,1.0985021,609.05,608.03,0.30176141]
[1745562961490,1.0985021,609.04,608.03,0.30176141]
[1745562961687,1.0985021,609.04,608.04,0.3017634]
[1745562961991,1.0985021,609.03,608.04,0.3017634]
[1745562962294,1.0985021,609.02,608.04,0.3017634]
[1745562962693,1.0985021,609.01,608.04,0.3017634]
[1745562963092,1.0985021,609.0,608.04,0.3017634]
[1745562963692,1.0985021,608.99,608.04,0.3017634]
[1745562964292,1.0985021,608.99,608.06,1.03729696]
[1745562964492,1.0985021,608.99,608.07,0.3017634]
[1745562964692,1.0985021,608.98,608.07,0.3017634]
[1745562965897,1.0985021,608.97,608.07,0.3017634]
[1745562966192,1.0985021,608.96,608.07,0.3017634]
[1745562966394,1.0985021,608.96,608.06,1.03729696]
[1745562966593,1.0985021,608.96,608.07,0.30172201]
[1745562966794,1.0985021,608.96,608.1,1.03729696]
[1745562966993,1.0985021,608.95,608.11,0.30172201]
[1745562967493,1.0985021,608.94,608.11,0.30172201]
[1745562967687,1.0985021,608.93,608.11,0.30172201]
[1745562968294,1.0985021,608.92,608.11,0.30172201]
[1745562968792,1.0985021,608.91,608.11,0.30172201]
[1745562969193,1.0985021,608.9,608.11,0.30172201]
[1745562969595,1.0985021,608.89,608.11,0.30172201]
[1745562969894,1.0985021,608.89,608.12,0.30172201]
[1745562970094,1.0985021,608.88,608.03,0.30172201]
[1745562970595,1.0985021,608.87,608.03,0.30172201]
[1745562971394,1.0985021,608.86,608.03,0.30172201]
[1745562972291,1.0985021,608.85,608.03,0.30172201]
[1745562972690,1.0985021,608.84,608.03,0.30172201]
[1745562973295,1.0985021,608.83,608.03,0.30172201]
[1745562974190,1.0985021,608.82,608.03,0.30172201]
[1745562974391,1.0985021,608.82,608.02,3.13491969]
[1745562974596,1.0985021,608.81,608.03,0.30169139]
[1745562975196,2.14006587,610.82,608.03,0.30169139]
[1745562975197,1.0985021,608.8,608.03,0.30169139]
[1745562975797,1.0985021,608.8,608.02,3.13491969]
[1745562976011,1.0985021,608.79,608.02,3.13491969]
[1745562976309,1.0985021,608.78,608.02,2.849]
[1745562976700,1.0985021,608.77,608.02,2.849]
[1745562977294,1.0985021,608.76,608.02,2.849]
[1745562977621,1.0985021,608.76,608.02,3.13500076]
[1745562977909,2.14518745,611.86,608.03,0.30180742]
[1745562977910,1.0985021,608.75,608.03,0.30180742]
[1745562978199,1.0985021,608.74,608.03,0.30180742]
[1745562978801,1.0985021,608.73,608.03,0.30180742]
[1745562979204,1.0985021,608.73,608.02,3.13500076]
[1745562979399,1.0985021,608.72,608.03,0.30180807]
[1745562979599,1.0985021,608.71,608.03,0.30180807]
[1745562979799,1.0985021,608.7,608.03,0.30180807]
[1745562980200,1.0985021,608.69,608.03,0.30180807]
[1745562980701,1.0985021,608.68,608.03,0.30180807]
[1745562980899,1.0985021,608.67,608.03,0.30180807]
[1745562981701,1.0985021,608.66,608.03,0.30180807]
[1745562982202,1.0985021,608.65,608.03,0.30180807]
[1745562982700,1.0985021,608.64,608.03,0.30180807]
[1745562983096,1.0985021,608.63,608.03,0.30180807]
[1745562984298,1.0985021,608.62,608.03,0.30180807]
[1745562984699,1.0985021,608.61,608.03,0.30180807]
[1745562984902,1.0985021,608.61,608.04,0.30183028]
[1745562985102,1.0985021,608.61,608.03,0.30183028]
[1745562985302,1.0985021,608.6,608.04,0.30183028]
[1745562985502,1.0985021,608.6,608.05,0.30183028]
[1745562985707,1.0985021,608.59,608.03,0.30183028]
[1745562986007,1.0985021,608.59,608.02,1.296]
[1745562986406,1.0985021,608.58,608.02,1.296]
[1745562986905,1.0985021,608.57,608.02,1.296]
[1745562987405,1.0985021,608.56,608.02,1.296]
[1745562987807,1.0985021,608.55,608.02,1.296]
[1745562988606,1.0985021,608.54,608.02,1.296]
[1745562989003,1.0985021,608.54,608.01,1.615]
[1745562989302,1.0985021,608.53,608.01,1.615]
[1745562990107,1.0985021,608.52,608.01,1.615]
[1745562990809,1.0985021,608.51,608.01,1.615]
[1745562991208,1.0985021,608.5,608.01,1.615]
[1745562991608,1.0985021,608.49,608.01,1.615]
[1745562992211,1.0985021,608.48,608.01,1.615]
[1745562992611,1.0985021,608.47,608.01,1.615]
[1745562993112,1.0985021,608.46,608.01,1.615]
[1745562993911,1.0985021,608.45,608.01,1.615]
[1745562994612,1.0985021,608.44,608.01,1.615]
[1745562995813,1.0985021,608.43,608.01,1.615]
[1745562996413,1.0985021,608.42,608.01,1.615]
[1745562996814,1.0985021,608.41,608.01,1.615]
[1745562997812,1.0985021,608.4,608.01,1.615]
[1745562998014,1.0985021,608.39,608.01,1.615]
[1745562998521,2.14006587,610.42,607.92,1.041]
[1745562998708,2.14006587,610.42,607.93,0.30186334]
[1745562999116,2.14006587,610.48,607.93,0.30186334]
[1745562999411,1.10045647,610.41,607.93,0.30186334]
[1745562999616,1.10045647,610.4,607.93,0.30186334]
[1745562999918,1.10045647,610.39,607.92,1.041]
[1745563000617,1.10045647,610.38,607.92,1.041]
[1745563000918,1.10045647,610.37,607.92,1.041]
[1745563001118,1.10045647,610.36,607.92,1.041]
[1745563001523,1.10045647,610.35,607.92,1.041]
[1745563001921,1.10045647,610.34,607.92,1.041]
[1745563002320,1.10045647,610.34,607.93,0.30185794]
[1745563002815,1.10045647,610.33,607.93,0.30185794]
[1745563003624,1.10045647,610.32,607.93,0.30185794]
[1745563004214,1.10045647,610.31,607.93,0.30185794]
[1745563004524,1.38629866,610.31,607.93,0.30185794]
[1745563004830,1.10045647,610.3,607.93,1.91085794]
[1745563005123,1.10045647,610.3,607.94,0.30185794]
[1745563005316,1.10045647,610.29,607.94,0.30185794]
[1745563005621,0.28584219,610.31,607.94,0.30185794]
[1745563005821,1.10045685,610.28,607.94,0.30185794]
[1745563006117,1.10045685,610.27,607.94,0.30185794]
[1745563006523,1.10045685,610.26,607.95,0.30183841]
[1745563006724,1.10045685,610.26,607.96,0.30183841]
[1745563007023,1.10045685,610.25,607.97,0.30183841]
[1745563007327,1.10045685,610.25,607.93,1.609]
[1745563007517,0.28584923,610.24,607.94,0.30185124]
[1745563007721,1.10045685,610.23,607.94,0.30185124]
[1745563007923,1.10045685,610.22,607.93,1.89484923]
[1745563008123,1.10045685,610.22,607.94,0.30185124]
[1745563008631,1.10045685,610.21,607.94,0.30185124]
[1745563009124,1.10045685,610.21,607.95,1.539]
[1745563009322,1.10045685,610.2,607.96,0.30185124]
[1745563009626,1.10045685,610.2,607.97,0.30184514]
[1745563009926,1.10045685,610.19,607.95,1.539]
[1745563010220,1.10045685,610.18,607.96,0.30184222]
[1745563010526,1.38631078,610.18,607.96,0.30184222]
[1745563010827,1.10045685,610.17,607.96,0.30184222]
[1745563011429,1.10045685,610.16,607.96,0.30184222]
[1745563011629,1.10045685,610.15,607.96,0.30184222]
[1745563012225,0.28585393,610.18,607.96,0.30184222]
[1745563012226,1.10045685,610.14,607.96,0.30184222]
[1745563012921,1.10045685,610.13,607.96,0.30184222]
[1745563013325,1.10045685,610.12,607.96,0.30184222]
[1745563013926,1.10045685,610.11,607.96,0.30184222]
[1745563014126,1.10045685,610.11,607.97,0.30180425]
[1745563014326,1.10045685,610.11,607.98,0.30180425]
[1745563014522,1.10045685,610.11,607.96,0.30180425]
[1745563014726,1.10045685,610.1,607.96,0.30180425]
[1745563015029,1.10045685,610.09,607.96,0.30180425]
[1745563015730,1.10045685,610.08,607.96,0.30180425]
[1745563016027,1.10045685,610.07,607.96,0.30180425]
[1745563016226,1.10045685,610.06,607.96,0.30180425]
[1745563016633,0.28585275,610.05,607.96,0.30180425]
[1745563016832,1.3863096,610.05,607.96,0.30180425]
[1745563017330,1.10045685,610.04,607.96,0.30180425]
[1745563017828,1.10045685,610.03,607.96,0.30180425]
[1745563018632,1.10045685,610.02,607.95,1.82485275]
[1745563018827,1.10045685,610.02,607.96,0.30179523]
[1745563019226,1.10045685,610.01,607.96,0.30179523]
[1745563019429,1.10045685,610.0,607.96,0.30179523]
[1745563020331,1.10045685,610.0,607.97,0.30179263]
[1745563020627,1.10045685,609.99,607.98,0.30179263]
[1745563020832,1.10045685,609.99,607.99,0.30179263]
[1745563021031,1.10045685,609.99,607.96,0.30179263]
[1745563021227,1.10045685,609.98,607.97,0.30179263]
[1745563021434,1.10045685,609.98,607.98,0.30178671]
[1745563021630,1.10045685,609.98,607.96,0.30178671]
[1745563021833,1.10045685,609.97,607.97,0.30178671]
[1745563022131,1.10045685,609.97,607.98,0.30178671]
[1745563022330,1.10045685,609.97,607.96,0.30178671]
[1745563022530,1.10045685,609.97,607.97,0.30178671]
[1745563022831,1.10045685,609.97,607.96,0.30178671]
[1745563023031,1.10045685,609.96,607.97,0.30178671]
[1745563023230,1.10045685,609.96,607.96,0.30178671]
[1745563023428,1.10045685,609.95,607.97,0.30178671]
[1745563023632,1.10045685,609.95,607.96,0.30178671]
[1745563023825,1.10045685,609.95,607.97,0.30178671]
[1745563024032,1.10045685,609.94,607.98,0.30178671]
[1745563024233,1.10045685,609.94,607.96,0.30178671]
[1745563024434,1.10045685,609.94,607.97,0.30177992]
[1745563024631,1.10045685,609.93,607.96,0.30177992]
[1745563024828,1.10045685,609.93,607.97,0.30177992]
[1745563025033,1.10045685,609.92,607.96,0.30177992]
[1745563025232,1.10045685,609.92,607.97,0.30177992]
[1745563025430,1.10045685,609.92,607.96,0.30177992]
[1745563025629,1.38630491,609.91,607.97,0.30177992]
[1745563025834,1.38630491,609.91,607.96,0.30177992]
[1745563026030,1.10045685,609.9,607.97,0.30177992]
[1745563026233,1.10045685,609.9,607.98,0.30177992]
[1745563026433,1.10045685,609.9,607.99,0.30177992]
[1745563026629,1.10045685,609.89,607.96,0.30177992]
[1745563026834,1.10045685,609.89,607.97,0.30177992]